fUSD/lending_fUSD_20260322
["ID","MTS","AMOUNT","RATE_DAILY","PERIOD"]
[408759751,1774200660431,-500.0,0.00029137,7]
[408759752,1774200660440,-500.0,0.00029137,7]
[408759753,1774200660450,-500.0,0.00029137,7]
[408759754,1774200660460,-500.0,0.00029137,7]
[408759755,1774200660469,-500.0,0.00029137,7]
[408759756,1774200660479,-500.0,0.00029137,7]
[408759757,1774200660488,-500.0,0.00029137,7]
[408759758,1774200660498,-500.0,0.00029137,7]
[408759759,1774200660508,-500.0,0.00029137,7]
[408759760,1774200660517,-500.0,0.00029137,7]
[408759761,1774200660527,-500.0,0.00029137,7]
[408759762,1774200660537,-500.0,0.00029137,7]
[408759763,1774200660547,-500.0,0.00029137,7]
[408759764,1774200660557,-500.0,0.00029137,7]
[408759765,1774200660568,-500.0,0.00029137,7]
[408759766,1774200660577,-441.37,0.00029137,7]
[408759767,1774200660587,-500.0,0.00029137,7]
[408759768,1774200660597,-500.0,0.00029137,7]
[408759769,1774200660607,-500.0,0.00029137,7]
[408759770,1774200660617,-500.0,0.00029137,7]
[408759771,1774200660627,-500.0,0.00029137,7]
[408759772,1774200660636,-500.0,0.00029137,7]
[408759773,1774200660646,-500.0,0.00029137,7]
[408759774,1774200660659,-500.0,0.00029137,7]
[408759775,1774200660668,-500.0,0.00029137,7]
[408759776,1774200660678,-500.0,0.00029137,7]
[408759777,1774200660687,-500.0,0.00029137,7]
[408759778,1774200660698,-500.0,0.00029137,7]
[408759779,1774200660708,-500.0,0.00029137,7]
[408759780,1774200660718,-500.0,0.00029137,7]
[408759781,1774200660729,-500.0,0.00029137,7]
[408759782,1774200660739,-365.02,0.00029137,7]
[408759783,1774200660749,-500.0,0.00029137,7]
[408759784,1774200660759,-242.8255754,0.00029147,2]
[408759785,1774200660768,-501.0,0.00029231,15]
[408759786,1774200660778,-500.0,0.00029259,120]
[408759787,1774200660788,-341.27,0.00029287,120]
[408759788,1774200660798,-150.0,0.000293,29]
[408759789,1774200660808,-176.09352672,0.000293,5]
[408759790,1774200660818,-350.0,0.00029329,8]
[408759791,1774200660827,-500.0,0.0002933,5]
[408759792,1774200660837,-154.05792027,0.0002942,2]
[408759793,1774200660846,-156.82467512,0.00029452,30]
[408759794,1774200660856,-341.28,0.00029561,120]
[408759795,1774200660866,-342.45063094,0.00029589,5]
[408759796,1774200660876,-150.0,0.00029706,2]
[408759797,1774200660885,-500.0,0.0002973,20]
[408759798,1774200660895,-171.0,0.00029763,120]
[408759799,1774200660905,-171.0,0.00029763,120]
[408759800,1774200660914,-172.0,0.00029763,120]
[408759801,1774200660923,-134938.59,0.000298,7]
[408759802,1774200660933,-746.586769,0.000298,7]
[408759803,1774200660943,-746.586769,0.000298,7]
[408759804,1774200660952,-746.586769,0.000298,7]
[408759805,1774200660961,-746.586769,0.000298,7]
[408759806,1774200660971,-160.939377,0.000298,7]
[408759807,1774200660980,-475.976313,0.000298,7]
[408759808,1774200660990,-475.976313,0.000298,7]
[408759809,1774200661000,-475.976313,0.000298,7]
[408759810,1774200661010,-151.0,0.000298,7]
[408759811,1774200661019,-475.976313,0.000298,7]
[408759812,1774200661029,-151.0,0.000298,7]
[408759813,1774200661039,-151.0,0.000298,7]
[408759814,1774200661048,-151.0,0.000298,7]
[408759815,1774200661058,-151.0,0.000298,7]
[408759816,1774200661067,-151.0,0.000298,7]
[408759817,1774200661077,-779.952875,0.000298,7]
[408759818,1774200661087,-779.952875,0.000298,7]
[408759819,1774200661096,-779.952875,0.000298,7]
[408759820,1774200661106,-779.952875,0.000298,7]
[408759821,1774200661115,-566.548979,0.000298,7]
[408759822,1774200661125,-566.548979,0.000298,7]
[408759823,1774200661134,-566.548979,0.000298,7]
[408759824,1774200661144,-566.548979,0.000298,7]
[408759825,1774200661153,-556.466781,0.000298,7]
[408759826,1774200661163,-556.466781,0.000298,7]
[408759827,1774200661173,-861.535885,0.000298,7]
[408759828,1774200661183,-556.466781,0.000298,7]
[408759829,1774200661192,-861.535885,0.000298,7]
[408759830,1774200661202,-556.466781,0.000298,7]
[408759831,1774200661211,-861.535885,0.000298,7]
[408759832,1774200661221,-861.535885,0.000298,7]
[408759833,1774200661231,-500.0,0.00029836,7]
[408759834,1774200661241,-500.0,0.00029836,7]
[408759835,1774200661250,-500.0,0.00029836,7]
[408759836,1774200661260,-500.0,0.00029836,7]
[408759837,1774200661270,-500.0,0.00029836,7]
[408759838,1774200661279,-500.0,0.00029836,7]
[408759839,1774200661289,-500.0,0.00029836,7]
[408759840,1774200661298,-500.0,0.00029836,7]
[408759841,1774200661309,-500.0,0.00029836,7]
[408759842,1774200661319,-478.49300463,0.00029836,7]
[408759843,1774200661328,-2700.0,0.00029863,21]
[408759844,1774200661337,-150.0,0.00029881,2]
[408759845,1774200661347,-251.715,0.000299,2]
[408759846,1774200661357,-500.0,0.0002993,5]
[408759847,1774200661367,-501.0,0.00029956,16]
[408759848,1774200661383,-150.0,0.00029971,2]
[408759849,1774200661393,-1000.0,0.00029987,2]
[408759850,1774200661403,-1010.03678902,0.00029988,15]
[408759851,1774200661412,-239.05448876,0.0002999,2]
[408759852,1774200661422,-160.0,0.0003,120]
[408759853,1774200661432,-246.0426085,0.0003,7]
[408759854,1774200661442,-246.0426085,0.0003,7]
[408759855,1774200661452,-362.72905046,0.0003,30]
[408759856,1774200661461,-1577.69,0.0003,7]
[408759857,1774200661471,-979.16666667,0.0003,7]
[408759858,1774200661481,-160.0,0.0003,120]
[408759859,1774200661491,-436.0,0.0003,14]
[408759860,1774200661503,-880.08804507,0.0003,120]
[408759861,1774200661513,-210.62872215,0.0003,30]
[408759862,1774200661524,-160.0,0.0003,120]
[408759863,1774200661534,-321.77024036,0.0003,2]
[408759864,1774200661544,-580.68588821,0.0003,4]
[408759865,1774200661554,-378.44951764,0.0003,120]
[408759866,1774200661563,-324.94837878,0.0003,120]
[408759867,1774200661574,-400.0,0.0003,20]
[408759868,1774200661584,-1639.8118048,0.0003,120]
[408759869,1774200661594,-519.80003167,0.0003,30]
[408759870,1774200661604,-164.29542047,0.0003,2]
[408759871,1774200661614,-563.62939984,0.0003,5]
[408759872,1774200661624,-150.0,0.0003,2]
[408759873,1774200661633,-1049.28,0.0003,30]
[408759874,1774200661643,-1406.47,0.0003,7]
[408759875,1774200661654,-170.706749,0.0003,7]
[408759876,1774200661665,-170.706749,0.0003,7]
[408759877,1774200661675,-170.706749,0.0003,7]
[408759878,1774200661684,-170.706749,0.0003,7]
[408759879,1774200661695,-500.0,0.00030001,2]
[408759880,1774200661707,-180.08008904,0.0003006,4]
[408759881,1774200661716,-363.04,0.00030063,120]
[408759882,1774200661729,-150.0,0.000301,2]
[408759883,1774200661739,-150.0,0.000301,2]
[408759884,1774200661750,-199.35,0.000301,11]
[408759885,1774200661760,-2000.0,0.000301,2]
[408759886,1774200661770,-200.0,0.000301,10]
[408759887,1774200661779,-191.31,0.000301,22]
[408759888,1774200661789,-191.31,0.000301,22]
[408759889,1774200661799,-770.45154855,0.000301,2]
[408759890,1774200661810,-528.20672675,0.000301,2]
[408759891,1774200661819,-376.0,0.0003013,14]
[408759892,1774200661829,-500.0,0.0003013,5]
[408759893,1774200661839,-500.0,0.00030136,120]
[408759894,1774200661848,-500.0,0.00030136,120]
[408759895,1774200662079,-500.0,0.00030136,120]
[408759896,1774200662090,-500.0,0.00030136,120]
[408759897,1774200662101,-500.0,0.00030136,120]
[408759898,1774200662112,-500.0,0.00030136,120]
[408759899,1774200662122,-500.0,0.00030136,120]
[408759900,1774200662132,-500.0,0.00030136,120]
[408759901,1774200662141,-500.0,0.00030136,120]
[408759902,1774200662151,-500.0,0.00030136,120]
[408759903,1774200662161,-500.0,0.00030136,120]
[408759904,1774200662171,-500.0,0.00030136,120]
[408759905,1774200662180,-500.0,0.00030136,120]
[408759906,1774200662190,-500.0,0.00030136,120]
[408759907,1774200662199,-500.0,0.00030136,120]
[408759908,1774200662208,-500.0,0.00030136,120]
[408759909,1774200662218,-500.0,0.00030136,120]
[408759910,1774200662229,-500.0,0.00030136,120]
[408759911,1774200662239,-500.0,0.00030136,120]
[408759912,1774200662248,-500.0,0.00030136,120]
[408759913,1774200662257,-500.0,0.00030136,120]
[408759914,1774200662267,-500.0,0.00030136,120]
[408759915,1774200662276,-500.0,0.00030136,120]
[408759916,1774200662286,-500.0,0.00030136,120]
[408759917,1774200662295,-500.0,0.00030136,120]
[408759918,1774200662307,-500.0,0.00030136,120]
[408759919,1774200662319,-500.0,0.00030136,120]
[408759920,1774200662329,-500.0,0.00030136,120]
[408759921,1774200662339,-500.0,0.00030136,120]
[408759922,1774200662350,-500.0,0.00030136,120]
[408759923,1774200662362,-500.0,0.00030136,120]
[408759924,1774200662371,-500.0,0.00030136,120]
[408759925,1774200662385,-500.0,0.00030136,120]
[408759926,1774200662395,-500.0,0.00030136,120]
[408759927,1774200662405,-500.0,0.00030136,120]
[408759928,1774200662415,-500.0,0.00030136,120]
[408759929,1774200662424,-500.0,0.00030136,120]
[408759930,1774200662433,-500.0,0.00030136,120]
[408759931,1774200662443,-500.0,0.00030136,120]
[408759932,1774200662452,-500.0,0.00030136,120]
[408759933,1774200662461,-500.0,0.00030136,120]
[408759934,1774200662470,-500.0,0.00030136,120]
[408759935,1774200662480,-500.0,0.00030136,120]
[408759936,1774200662490,-500.0,0.00030136,120]
[408759937,1774200662500,-500.0,0.00030136,120]
[408759938,1774200662509,-500.0,0.00030136,120]
[408759939,1774200662519,-500.0,0.00030136,120]
[408759940,1774200662528,-463.04912963,0.00030136,120]
[408759941,1774200662537,-151.0,0.00030137,7]
[408759942,1774200662547,-151.0,0.00030137,7]
[408759943,1774200662560,-151.0,0.00030137,7]
[408759944,1774200662571,-500.0,0.00030137,120]
[408759945,1774200662582,-500.0,0.00030137,120]
[408759946,1774200662594,-500.0,0.00030137,120]
[408759947,1774200662606,-500.0,0.00030137,120]
[408759948,1774200662616,-500.0,0.00030137,120]
[408759949,1774200662626,-500.0,0.00030137,120]
[408759950,1774200662636,-157.53,0.00030137,120]
[408759951,1774200662645,-152.0,0.00030137,7]
[408759952,1774200662663,-182.84119736,0.00030137,7]
[408759953,1774200662683,-1156.18765872,0.00030137,7]
[408759954,1774200662703,-167.0,0.00030137,7]
[408759955,1774200662722,-151.0,0.00030137,7]
[408759956,1774200662743,-151.0,0.00030137,7]
[408759957,1774200662765,-151.0,0.00030137,7]
[408759958,1774200662787,-151.0,0.00030137,7]
[408759959,1774200662812,-180.65887883,0.00030137,7]
[408759960,1774200662825,-151.0,0.00030137,7]
[408759961,1774200662835,-152.9423243,0.00030137,7]
[408759962,1774200662844,-153.0,0.00030137,7]
[408759963,1774200662854,-153.0,0.00030137,7]
[408759964,1774200662863,-153.0,0.00030137,7]
[408759965,1774200662872,-239.0021021,0.00030137,7]
[408759966,1774200662881,-250.0,0.00030137,2]
[408759967,1774200662891,-250.0,0.00030137,2]
[408759968,1774200662901,-250.0,0.00030137,2]
[408759969,1774200662909,-250.0,0.00030137,2]
[408759970,1774200662918,-250.0,0.00030137,2]
[408759971,1774200662928,-250.0,0.00030137,2]
[408759972,1774200662937,-250.0,0.00030137,2]
[408759973,1774200662945,-250.0,0.00030137,2]
[408759974,1774200662954,-250.0,0.00030137,2]
[408759975,1774200662963,-251.17552973,0.00030137,2]
[408759976,1774200662973,-217.43278648,0.00030137,4]
[408759977,1774200662983,-350.0,0.00030147,8]
[408759978,1774200662993,-2748.66,0.00030187,2]
[408759979,1774200663002,-1515.8,0.000302,7]
[408759980,1774200663011,-300.0,0.000302,10]
[408759981,1774200663021,-150.0,0.000303,32]
[408759982,1774200663030,-500.0,0.0003033,5]
[408759983,1774200663040,-879.37,0.00030387,60]
[408759984,1774200663050,-596.28,0.00030411,120]
[408759985,1774200663062,-436.0,0.00030411,14]
[408759986,1774200663072,-548.73,0.000305,7]
[408759987,1774200663081,-500.0,0.0003053,30]
[408759988,1774200663091,-177.0525,0.00030631,60]
[408759989,1774200663101,-280.0,0.00030646,60]
[408759990,1774200663111,-150.0,0.00030646,60]
[408759991,1774200663120,-160.0,0.00030646,60]
[408759992,1774200663130,-160.0,0.00030646,60]
[408759993,1774200663139,-150.0,0.00030646,60]
[408759994,1774200663148,-150.0,0.00030646,60]
[408759995,1774200663158,-298.18,0.00030646,60]
[408759996,1774200663167,-160.0,0.00030646,60]
[408759997,1774200663177,-501.0,0.00030681,16]
[408759998,1774200663187,-1779.72,0.000307,2]
[408759999,1774200663196,-442.37844446,0.0003073,5]
[408760000,1774200663205,-150.0,0.00030739,2]
[408760001,1774200663214,-250.0,0.000308,30]
[408760002,1774200663223,-2000.0,0.000308,2]
[408760003,1774200663232,-500.0,0.00030812,120]
[408760004,1774200663242,-274.0,0.0003084,30]
[408760005,1774200663252,-150.0,0.00030886,2]
[408760006,1774200663261,-1010.03678903,0.00030989,15]
[408760007,1774200663269,-346.40938045,0.00031,5]
[408760008,1774200663278,-202.43294837,0.00031,120]
[408760009,1774200663287,-2269.20548033,0.00031,30]
[408760010,1774200663296,-151.0,0.00031,30]
[408760011,1774200663308,-979.16666667,0.00031,120]
[408760012,1774200663317,-700.0,0.00031,2]
[408760013,1774200663326,-1298.86,0.00031002,2]
[408760014,1774200663335,-213.8,0.000311,4]
[408760015,1774200663344,-213.8,0.000311,4]
[408760016,1774200663353,-287.71,0.00031178,2]
[408760017,1774200663362,-693.3919763,0.0003118,2]
[408760018,1774200663372,-833.92535153,0.0003118,2]
[408760019,1774200663380,-171.0,0.00031251,120]
[408760020,1774200663389,-171.0,0.00031251,120]
[408760021,1774200663398,-172.0,0.00031251,120]
[408760022,1774200663407,-350.0,0.00031286,9]
[408760023,1774200663416,-150.0,0.000313,35]
[408760024,1774200663426,-261.1966,0.000313,2]
[408760025,1774200663435,-515.73565323,0.000314,30]
[408760026,1774200663444,-716.0,0.000314,120]
[408760027,1774200663455,-2000.0,0.000314,2]
[408760028,1774200663464,-501.0,0.00031407,17]
[408760029,1774200663474,-150.0,0.0003147,2]
[408760030,1774200663484,-1539.0,0.00031492,120]
[408760031,1774200663493,-198.95643928,0.000315,2]
[408760032,1774200663502,-150.0,0.000315,2]
[408760033,1774200663512,-2353.0,0.000315,2]
[408760034,1774200663521,-2700.0,0.00031507,21]
[408760035,1774200663530,-350.0,0.00031533,7]
[408760036,1774200663539,-350.0,0.00031595,8]
[408760037,1774200663549,-1577.69,0.000316,7]
[408760038,1774200663559,-436.0,0.00031644,14]
[408760039,1774200663568,-150.0,0.00031656,60]
[408760040,1774200663577,-659.76,0.00031693,2]
[408760041,1774200663586,-659.76,0.00031693,2]
[408760042,1774200663596,-1175.78,0.00031693,2]
[408760043,1774200663605,-705.67,0.00031693,2]
[408760044,1774200663614,-562.24,0.00031693,2]
[408760045,1774200663623,-544.55,0.00031793,120]
[408760046,1774200663633,-1515.8,0.000318,7]
[408760047,1774200663642,-1261.0,0.00031811,2]
[408760048,1774200663652,-3760.0,0.00031811,2]
[408760049,1774200663664,-415.0,0.00031811,2]
[408760050,1774200663673,-150.0,0.00031835,2]
[408760051,1774200663682,-150.0,0.00031835,2]
[408760052,1774200663691,-150.0,0.00031835,2]
[408760053,1774200663702,-150.0,0.00031835,2]
[408760054,1774200663710,-150.0,0.00031835,2]
[408760055,1774200663719,-151.0,0.000319,7]
[408760056,1774200663728,-151.0,0.000319,7]
[408760057,1774200663738,-846.744065,0.000319,7]
[408760058,1774200663747,-846.744065,0.000319,7]
[408760059,1774200663756,-846.744065,0.000319,7]
[408760060,1774200663766,-846.744065,0.000319,7]
[408760061,1774200663775,-394.326234,0.000319,7]
[408760062,1774200663784,-394.326234,0.000319,7]
[408760063,1774200663793,-394.326234,0.000319,7]
[408760064,1774200663802,-394.326234,0.000319,7]
[408760065,1774200663811,-284.119905,0.000319,7]
[408760066,1774200663821,-227.247813,0.000319,7]
[408760067,1774200663829,-151.0,0.000319,7]
[408760068,1774200663839,-154.190273,0.00031997,7]
[408760069,1774200663848,-500.0,0.00031999,120]
[408760070,1774200663857,-500.0,0.00031999,120]
[408760071,1774200663866,-175.58471718,0.00032,120]
[408760072,1774200663875,-1000.0,0.00032,120]
[408760073,1774200663885,-1000.0,0.00032,120]
[408760074,1774200663894,-204644.29425665,0.00032,120]
[408760075,1774200665608,-1100.18388653,0.00015999,2]
[408760078,1774200763961,150.0,0.00016,120]
[408760079,1774201136097,272.55,0.00016,120]
[408760080,1774201165358,1000.0,0.0001257,10]
[408760084,1774201536601,1000.0,0.00017,60]
[408760085,1774201559774,1556.523162,0.00012575,10]
[408760094,1774201831797,-743.11114599,0.00010899,2]
[408760095,1774201831807,-250.0,0.00010939,2]
[408760096,1774201831816,-197.74607239,0.00010978,2]
[408760100,1774201832303,-52.25392761,0.00010978,2]
[408760101,1774201832313,-195.0,0.00010979,2]
[408760102,1774201832324,-195.0,0.00010979,2]
[408760103,1774201832334,-126.87776281,0.00010979,2]
[408760104,1774201832373,-68.12223719,0.00010979,2]
[408760105,1774201832383,-195.0,0.00010979,2]
[408760106,1774201832393,-300.0,0.00010998,2]
[408760107,1774201832402,-150.00524308,0.00010998,2]
[408760108,1774201832414,-149.99475692,0.00010998,2]
[408760109,1774201832424,-1200.0,0.00010998,2]
[408760110,1774201832433,-2389.89783269,0.00010999,2]
[408760111,1774201832452,-2615.29353541,0.00010999,2]
[408760112,1774201832462,-500.0,0.00011,2]
[408760113,1774201832471,-193.22,0.00011011,2]
[408760114,1774201832482,-300.0,0.00011249,2]
[408760115,1774201832491,-150.0,0.00011316,2]
[408760116,1774201832500,-150.0,0.000114,2]
[408760117,1774201832509,-458.28493653,0.00011424,2]
[408760130,1774201837837,-284.82620945,0.00011424,2]
[408760132,1774201837848,-150.85550912,0.000115,2]
[408760133,1774201837860,-849.14449088,0.000115,2]
[408760134,1774201837871,-466.08380462,0.00011574,2]
[408760135,1774201837880,-353.40991188,0.00011926,2]
[408760136,1774201837889,-500.0,0.00011926,2]
[408760137,1774201837898,-500.0,0.00011926,2]
[408760138,1774201837909,-500.0,0.00011926,2]
[408760139,1774201837918,-500.0,0.00011926,2]
[408760140,1774201837928,-500.0,0.00011926,2]
[408760141,1774201837939,-500.0,0.00011926,2]
[408760142,1774201837948,-500.0,0.00011926,2]
[408760143,1774201837959,-500.0,0.00011926,2]
[408760144,1774201837968,-500.0,0.00011926,2]
[408760145,1774201837979,-500.0,0.00011926,2]
[408760146,1774201837990,-500.0,0.00011926,2]
[408760147,1774201838004,-500.0,0.00011926,2]
[408760148,1774201838019,-500.0,0.00011926,2]
[408760149,1774201838028,-520.0822941,0.00011926,2]
[408760150,1774201838039,-500.0,0.00011926,2]
[408760151,1774201838048,-500.0,0.00011926,2]
[408760152,1774201838057,-221644.46991712,0.00011927,2]
[408760153,1774201838085,-45000.76632627,0.00011927,2]
[408760167,1774201841690,-1010.03678902,0.00011926,3]
[408760168,1774201841700,-551431.4585732,0.00011927,2]
[408760169,1774201841730,-2716.2600284,0.00011927,2]
[408760170,1774201841756,-292060.31044885,0.00011927,2]
[408760171,1774201841767,-61432.14963346,0.00011927,2]
[408760192,1774201843114,-9410.8741091,0.00011927,2]
[408760197,1774201845891,-11053.57,0.00011927,2]
[408760203,1774201875005,288.44,0.00016,120]
[408760206,1774202945761,1072.777977,0.00010363,2]
[408760207,1774202993973,1023.11391204,0.0001032,2]
[408760208,1774202993998,2372.36451701,0.0001032,2]
[408760209,1774202994023,722.8955016,0.0001032,2]
[408760212,1774203032610,-255.0,0.0001032,2]
[408760213,1774203032620,-2817.47606935,0.0001032,2]
[408760214,1774203032629,-1045.59810829,0.00010368,2]
[408760215,1774203032639,-159.81,0.00010415,2]
[408760216,1774203032648,-241.25047278,0.00010437,2]
[408760217,1774203032658,-1500.0,0.00010459,2]
[408760218,1774203032667,-831.12235965,0.0001047,2]
[408760219,1774203032690,-1196.57885383,0.0001047,2]
[408760220,1774203032700,-462.5120064,0.00010631,2]
[408760221,1774203032709,-727.71121395,0.00010731,2]
[408760222,1774203032718,-1200.0,0.00010786,2]
[408760223,1774203032728,-727.71121395,0.00010787,2]
[408760224,1774203032737,-500.0,0.00010799,2]
[408760225,1774203032747,-35.48671187,0.0001087,2]
[408760226,1774203032758,-264.51328813,0.0001087,2]
[408760227,1774203032767,-300.0,0.0001087,2]
[408760228,1774203032778,-300.0,0.0001087,2]
[408760229,1774203032787,-679.05725253,0.00010871,2]
[408760230,1774203032799,-48.65396142,0.00010871,2]
[408760231,1774203032808,-807.0,0.00010871,2]
[408760232,1774203032818,-2000.0,0.00010872,2]
[408760233,1774203032839,-150.0,0.00010958,2]
[408760234,1774203032849,-150.0,0.00010959,2]
[408760235,1774203032859,-166.66,0.00010959,2]
[408760236,1774203032868,-2570.48603858,0.00010959,2]
[408760237,1774203032881,-889.56582339,0.00010959,2]
[408760238,1774203032893,-367.55852767,0.00010959,2]
[408760239,1774203032906,-355.00000001,0.00010959,2]
[408760240,1774203032953,-571.5092,0.00010959,2]
[408760265,1774203038397,-568.4,0.00010959,2]
[408760269,1774203038415,-324.27,0.00010959,2]
[408760271,1774203038427,-4353.20041035,0.00010959,2]
[408760273,1774203038436,-13012.25,0.00010959,2]
[408760275,1774203038445,-500.0,0.00011,2]
[408760277,1774203038454,-160.20374781,0.00011,2]
[408760279,1774203038463,-500.0,0.00011,2]
[408760281,1774203038472,-500.0,0.00011,2]
[408760283,1774203038482,-161.24021729,0.00011,2]
[408760285,1774203038491,-160.20220699,0.00011,2]
[408760287,1774203038500,-160.18168561,0.00011,2]
[408760289,1774203038511,-160.20081555,0.00011,2]
[408760291,1774203038521,-500.0,0.00011,2]
[408760293,1774203038531,-500.0,0.00011,2]
[408760295,1774203038540,-166.66,0.00011068,2]
[408760297,1774203038549,-500.0,0.0001114,2]
[408760299,1774203038558,-462.51200639,0.00011147,2]
[408760301,1774203038567,-166.66,0.00011178,2]
[408760303,1774203038576,-257.93,0.00011233,2]
[408760305,1774203038585,-166.66,0.00011288,2]
[408760307,1774203038594,-5000.0,0.00011352,2]
[408760309,1774203038604,-166.66,0.00011397,2]
[408760311,1774203038613,-250.0,0.00011457,2]
[408760313,1774203038622,-195.0,0.00011457,2]
[408760315,1774203038633,-195.0,0.00011457,2]
[408760317,1774203038642,-195.0,0.00011457,2]
[408760319,1774203038652,-250.0,0.00011457,2]
[408760322,1774203038661,-195.0,0.00011457,2]
[408760324,1774203038671,-195.0,0.00011457,2]
[408760326,1774203038680,-159.81,0.00011457,2]
[408760328,1774203038688,-166.66,0.00011507,2]
[408760330,1774203038697,-2761.41,0.00011507,2]
[408760332,1774203038706,-500.0,0.00011548,2]
[408760334,1774203038715,-1000.0,0.00011548,2]
[408760336,1774203038725,-1000.0,0.00011548,2]
[408760338,1774203038735,-500.0,0.00011548,2]
[408760339,1774203038744,-691.85246219,0.00011548,2]
[408760341,1774203038753,-49938.11760264,0.00011563,2]
[408760344,1774203038762,-418.0,0.000116,2]
[408760346,1774203038772,-415.01760791,0.00011644,2]
[408760348,1774203038781,-500.0,0.00011653,2]
[408760350,1774203038791,-241.16672951,0.00011653,2]
[408760352,1774203038800,-500.0,0.00011653,2]
[408760353,1774203038809,-282.62891099,0.00011653,2]
[408760355,1774203038818,-500.0,0.00011653,2]
[408760358,1774203038828,-31508.76128085,0.00011654,2]
[408760362,1774203038856,-7121.62979105,0.00011654,2]
[408760395,1774203040212,-29999.931705,0.00011654,2]
[408760396,1774203040265,-716.49020845,0.00011654,2]
[408760397,1774203040320,-1430653.18701465,0.00011654,2]
[408760398,1774203040333,-462.51200639,0.00011663,2]
[408760399,1774203040342,-500.0,0.00011673,2]
[408760400,1774203040352,-500.0,0.00011673,2]
[408760401,1774203040362,-500.0,0.00011673,2]
[408760402,1774203040372,-500.0,0.00011673,2]
[408760403,1774203040381,-160.19770395,0.00011673,2]
[408760404,1774203040391,-500.0,0.00011673,2]
[408760405,1774203040401,-500.0,0.00011673,2]
[408760406,1774203040411,-500.0,0.00011673,2]
[408760407,1774203040421,-501.27392354,0.00011673,2]
[408760408,1774203040430,-500.0,0.00011673,2]
[408760409,1774203040439,-15800.9321179,0.00011673,2]
[408760410,1774203040449,-301.01377224,0.000117,2]
[408760411,1774203040458,-1000.0,0.00011748,2]
[408760412,1774203040468,-2500.0,0.00011748,2]
[408760413,1774203040478,-280.70131564,0.0001175,2]
[408760414,1774203040487,-69237.11072021,0.00011763,2]
[408760415,1774203040497,-500.0,0.00011773,2]
[408760416,1774203040506,-1010.03678902,0.00011847,3]
[408760417,1774203040515,-1680.0,0.00011865,2]
[408760418,1774203040525,-167.52277852,0.00011873,2]
[408760419,1774203040534,-500.0,0.00011873,2]
[408760420,1774203040544,-150.0,0.000119,2]
[408760421,1774203040553,-162.6142526,0.00011919,2]
[408760422,1774203040562,-103766.94374058,0.00011919,2]
[408760423,1774203040690,-33306.81882342,0.00011919,2]
[408760424,1774203040700,-42077.5977284,0.00011919,2]
[408760425,1774203040710,-1931.2740958,0.00011919,2]
[408760426,1774203040719,-417749.6546157,0.00011919,2]
[408760427,1774203040728,-151.0,0.00011924,2]
[408760428,1774203040738,-151.0,0.00011924,2]
[408760429,1774203040747,-1010.03678902,0.00011926,3]
[408760430,1774203040757,-1003.89322888,0.00011926,2]
[408760431,1774203040766,-1000.0,0.00011926,2]
[408760432,1774203040776,-195.9829745,0.00011927,2]